[Event "Titled Tuesday Blitz January 18 2022"]
[White "Ivanov, Oleg"]
[Black "Kavyev, Ruslan"]
[WhiteFideId "4103114"]
[BlackFideId "34110981"]
[WhiteElo "2830"]
[BlackElo "2182"]
[Result "1-0"]
[Round "08"]
[TimeControl "180+1"]
[Date "2022.01.18"]
[WhiteClock "0:00:11"]
[BlackClock "0:00:51"]

1. c4 {[%clk 0:03:00]}  Nf6 {[%clk 0:03:00]} 2. g3 {[%clk 0:03:00]}  g6 {[%clk 0:03:00]} 3. Bg2 {[%clk 0:03:00]}  Bg7 {[%clk 0:03:01]} 4. Nf3 {[%clk 0:03:00]}  O-O {[%clk 0:03:01]} 5. O-O {[%clk 0:03:00]}  c5 {[%clk 0:03:02]} 6. Nc3 {[%clk 0:02:59]}  Nc6 {[%clk 0:03:03]} 7. d4 {[%clk 0:02:59]}  cxd4 {[%clk 0:03:03]} 8. Nxd4 {[%clk 0:03:00]}  Ng4 {[%clk 0:03:04]} 9. Nxc6 {[%clk 0:02:42]}  bxc6 {[%clk 0:03:05]} 10. Qc2 {[%clk 0:02:40]}  Rb8 {[%clk 0:02:34]} 11. b3 {[%clk 0:02:37]}  Qa5 {[%clk 0:02:24]} 12. Bb2 {[%clk 0:02:36]}  Qh5 {[%clk 0:02:19]} 13. h3 {[%clk 0:02:35]}  Ne5 {[%clk 0:02:17]} 14. f4 {[%clk 0:02:23]}  Nxc4 {[%clk 0:02:11]} 15. bxc4 {[%clk 0:02:21]}  Qc5+ {[%clk 0:02:11]} 16. Kh2 {[%clk 0:02:18]}  Qxc4 {[%clk 0:02:12]} 17. Rac1 {[%clk 0:02:15]}  Ba6 {[%clk 0:02:12]} 18. Ba1 {[%clk 0:02:04]}  Rb4 {[%clk 0:01:54]} 19. Rfd1 {[%clk 0:01:54]}  Rfb8 {[%clk 0:01:54]} 20. Rxd7 {[%clk 0:01:49]}  Qe6 {[%clk 0:01:42]} 21. Rcd1 {[%clk 0:01:42]}  h5 {[%clk 0:01:37]} 22. Rd8+ {[%clk 0:01:09]}  Rxd8 {[%clk 0:01:36]} 23. Rxd8+ {[%clk 0:01:10]}  Kh7 {[%clk 0:01:37]} 24. e4 {[%clk 0:00:57]}  h4 {[%clk 0:01:33]} 25. g4 {[%clk 0:00:56]}  Qf6 {[%clk 0:01:31]} 26. Qd2 {[%clk 0:00:47]}  Rc4 {[%clk 0:01:24]} 27. e5 {[%clk 0:00:41]}  Qxf4+ {[%clk 0:01:24]} 28. Qxf4 {[%clk 0:00:42]}  Rxf4 {[%clk 0:01:25]} 29. Ne4 {[%clk 0:00:39]}  Bc4 {[%clk 0:01:09]} 30. Bd4 {[%clk 0:00:35]}  Bd5 {[%clk 0:01:00]} 31. Ng5+ {[%clk 0:00:17]}  Kh6 {[%clk 0:01:01]} 32. Be3 {[%clk 0:00:16]}  Kxg5 {[%clk 0:01:00]} 33. Bxd5 {[%clk 0:00:15]}  cxd5 {[%clk 0:00:56]} 34. Rxd5 {[%clk 0:00:16]}  e6 {[%clk 0:00:56]} 35. Ra5 {[%clk 0:00:15]}  Bh8 {[%clk 0:00:52]} 36. Kg2 {[%clk 0:00:15]}  Bg7 {[%clk 0:00:52]} 37. a4 {[%clk 0:00:14]}  Bh8 {[%clk 0:00:52]} 38. Rxa7 {[%clk 0:00:13]}  Bxe5 {[%clk 0:00:52]} 39. Rxf7 {[%clk 0:00:13]}  Bd6 {[%clk 0:00:50]} 40. a5 {[%clk 0:00:11]}  e5 {[%clk 0:00:51]} 41. a6 {[%clk 0:00:11]} 1-0


[Site "https://www.chess.com"]

[Event "Titled Tuesday Blitz January 18 2022"]
[White "Izoria, Zviad"]
[Black "Klimkowski, Jan"]
[WhiteFideId "13601733"]
[BlackFideId "21856222"]
[WhiteElo "2626"]
[BlackElo "2172"]
[Result "0-1"]
[Round "08"]
[TimeControl "180+1"]
[Date "2022.01.18"]
[WhiteClock "0:00:03"]
[BlackClock "0:00:43"]

1. Nf3 {[%clk 0:03:00]}  Nf6 {[%clk 0:02:58]} 2. c4 {[%clk 0:03:00]}  e6 {[%clk 0:02:58]} 3. Nc3 {[%clk 0:02:56]}  d5 {[%clk 0:02:59]} 4. e3 {[%clk 0:02:54]}  Be7 {[%clk 0:02:58]} 5. b3 {[%clk 0:02:54]}  O-O {[%clk 0:02:58]} 6. Bb2 {[%clk 0:02:54]}  c5 {[%clk 0:02:59]} 7. cxd5 {[%clk 0:02:54]}  exd5 {[%clk 0:02:57]} 8. d4 {[%clk 0:02:53]}  Nc6 {[%clk 0:02:55]} 9. Be2 {[%clk 0:02:52]}  Bg4 {[%clk 0:02:53]} 10. dxc5 {[%clk 0:02:50]}  Bxc5 {[%clk 0:02:53]} 11. O-O {[%clk 0:02:50]}  Re8 {[%clk 0:02:37]} 12. Rc1 {[%clk 0:02:49]}  Bb4 {[%clk 0:02:21]} 13. a3 {[%clk 0:02:32]}  Be7 {[%clk 0:02:19]} 14. b4 {[%clk 0:02:28]}  Rc8 {[%clk 0:02:14]} 15. h3 {[%clk 0:02:25]}  Bh5 {[%clk 0:02:04]} 16. Nh4 {[%clk 0:02:14]}  Bxe2 {[%clk 0:01:56]} 17. Nxe2 {[%clk 0:02:15]}  Ne4 {[%clk 0:01:53]} 18. Nf5 {[%clk 0:01:50]}  Bf6 {[%clk 0:01:52]} 19. Bxf6 {[%clk 0:01:49]}  Qxf6 {[%clk 0:01:52]} 20. Qxd5 {[%clk 0:01:07]}  Re5 {[%clk 0:01:37]} 21. Qd7 {[%clk 0:01:04]}  Qxf5 {[%clk 0:01:38]} 22. Qxf5 {[%clk 0:01:02]}  Rxf5 {[%clk 0:01:39]} 23. Rfd1 {[%clk 0:00:59]}  Nf6 {[%clk 0:01:26]} 24. Nf4 {[%clk 0:00:47]}  a6 {[%clk 0:01:22]} 25. g4 {[%clk 0:00:45]}  Re5 {[%clk 0:01:21]} 26. Nd3 {[%clk 0:00:45]}  Re7 {[%clk 0:01:19]} 27. Nc5 {[%clk 0:00:45]}  h6 {[%clk 0:01:12]} 28. Kg2 {[%clk 0:00:33]}  Rec7 {[%clk 0:01:09]} 29. Na4 {[%clk 0:00:22]}  Ne7 {[%clk 0:01:03]} 30. Rxc7 {[%clk 0:00:21]}  Rxc7 {[%clk 0:01:03]} 31. Rd8+ {[%clk 0:00:20]}  Kh7 {[%clk 0:01:04]} 32. Nc5 {[%clk 0:00:21]}  Nc6 {[%clk 0:00:59]} 33. Ra8 {[%clk 0:00:21]}  Nd7 {[%clk 0:00:57]} 34. Nd3 {[%clk 0:00:19]}  Nce5 {[%clk 0:00:56]} 35. Nf4 {[%clk 0:00:17]}  Nb6 {[%clk 0:00:55]} 36. Re8 {[%clk 0:00:15]}  Ng6 {[%clk 0:00:53]} 37. Nd3 {[%clk 0:00:10]}  Na4 {[%clk 0:00:48]} 38. Kg3 {[%clk 0:00:09]}  Rd7 {[%clk 0:00:46]} 39. Nf4 {[%clk 0:00:05]}  Nxf4 {[%clk 0:00:46]} 40. Kxf4 {[%clk 0:00:05]}  Nb6 {[%clk 0:00:47]} 41. Re4 {[%clk 0:00:04]}  Nd5+ {[%clk 0:00:45]} 42. Kg3 {[%clk 0:00:04]}  Nc3 {[%clk 0:00:46]} 43. Rc4 {[%clk 0:00:04]}  Nb5 {[%clk 0:00:46]} 44. a4 {[%clk 0:00:04]}  Nd6 {[%clk 0:00:43]} 45. Rc5 {[%clk 0:00:03]}  Ne4+ {[%clk 0:00:43]} 0-1


[Site "https://www.chess.com"]

[Event "Titled Tuesday Blitz January 18 2022"]
[White "Jary, Sergey"]
[Black "Perez Gormaz, Matias"]
[WhiteFideId "14110350"]
[BlackFideId "3406342"]
[WhiteElo "2260"]
[BlackElo "2352"]
[Result "1-0"]
[Round "08"]
[TimeControl "180+1"]
[Date "2022.01.18"]
[WhiteClock "0:01:32"]
[BlackClock "0:00:03"]

1. e4 {[%clk 0:03:00]}  c5 {[%clk 0:02:59]} 2. Nf3 {[%clk 0:03:00]}  d6 {[%clk 0:02:59]} 3. d4 {[%clk 0:03:01]}  cxd4 {[%clk 0:02:59]} 4. Nxd4 {[%clk 0:03:01]}  Nf6 {[%clk 0:03:00]} 5. f3 {[%clk 0:03:01]}  e5 {[%clk 0:03:00]} 6. Bb5+ {[%clk 0:03:00]}  Nbd7 {[%clk 0:02:58]} 7. Nf5 {[%clk 0:03:00]}  a6 {[%clk 0:02:57]} 8. Bxd7+ {[%clk 0:02:59]}  Qxd7 {[%clk 0:02:55]} 9. Nc3 {[%clk 0:02:57]}  d5 {[%clk 0:02:42]} 10. Bg5 {[%clk 0:02:42]}  d4 {[%clk 0:02:15]} 11. Bxf6 {[%clk 0:02:41]}  gxf6 {[%clk 0:02:15]} 12. Nd5 {[%clk 0:02:36]}  Qc6 {[%clk 0:02:13]} 13. Nh4 {[%clk 0:02:36]}  Be6 {[%clk 0:02:10]} 14. c3 {[%clk 0:02:25]}  dxc3 {[%clk 0:01:56]} 15. Nxf6+ {[%clk 0:02:20]}  Ke7 {[%clk 0:01:50]} 16. Nd5+ {[%clk 0:02:20]}  Bxd5 {[%clk 0:01:44]} 17. exd5 {[%clk 0:02:21]}  Qc4 {[%clk 0:01:10]} 18. Nf5+ {[%clk 0:02:20]}  Ke8 {[%clk 0:01:09]} 19. bxc3 {[%clk 0:02:14]}  Qxc3+ {[%clk 0:01:00]} 20. Ke2 {[%clk 0:02:14]}  Rd8 {[%clk 0:00:44]} 21. Rc1 {[%clk 0:02:08]}  Qb2+ {[%clk 0:00:44]} 22. Rc2 {[%clk 0:02:01]}  Qb5+ {[%clk 0:00:44]} 23. Qd3 {[%clk 0:02:02]}  Qd7 {[%clk 0:00:06]} 24. Ne3 {[%clk 0:01:56]}  Bh6 {[%clk 0:00:03]} 25. Ng4 {[%clk 0:01:51]}  Bg7 {[%clk 0:00:03]} 26. Rd1 {[%clk 0:01:47]}  f5 {[%clk 0:00:03]} 27. Ne3 {[%clk 0:01:41]}  Rf8 {[%clk 0:00:04]} 28. Rdc1 {[%clk 0:01:36]}  Rf7 {[%clk 0:00:03]} 29. Rc7 {[%clk 0:01:32]} 1-0


[Site "https://www.chess.com"]

[Event "Titled Tuesday Blitz January 18 2022"]
[White "Kalashian, David"]
[Black "Andreikin, Dmitry"]
[WhiteFideId "13302418"]
[BlackFideId "4158814"]
[WhiteElo "2490"]
[BlackElo "2736"]
[Result "0-1"]
[Round "08"]
[TimeControl "180+1"]
[Date "2022.01.18"]
[WhiteClock "0:00:09"]
[BlackClock "0:00:59"]

1. d4 {[%clk 0:02:59]}  d5 {[%clk 0:02:58]} 2. Nf3 {[%clk 0:02:59]}  Nf6 {[%clk 0:02:58]} 3. c4 {[%clk 0:03:00]}  c6 {[%clk 0:02:57]} 4. Qc2 {[%clk 0:03:00]}  e6 {[%clk 0:02:51]} 5. g3 {[%clk 0:02:58]}  Be7 {[%clk 0:02:50]} 6. Bg2 {[%clk 0:02:58]}  O-O {[%clk 0:02:51]} 7. O-O {[%clk 0:02:59]}  b6 {[%clk 0:02:51]} 8. Nc3 {[%clk 0:02:55]}  Ba6 {[%clk 0:02:49]} 9. b3 {[%clk 0:02:54]}  dxc4 {[%clk 0:02:45]} 10. Ne5 {[%clk 0:02:49]}  cxb3 {[%clk 0:02:42]} 11. axb3 {[%clk 0:02:48]}  Bb7 {[%clk 0:02:42]} 12. Rd1 {[%clk 0:02:44]}  Nd5 {[%clk 0:02:41]} 13. e4 {[%clk 0:02:31]}  Nb4 {[%clk 0:02:38]} 14. Qe2 {[%clk 0:02:31]}  Nd7 {[%clk 0:02:34]} 15. Nc4 {[%clk 0:02:27]}  a5 {[%clk 0:02:31]} 16. Bf4 {[%clk 0:02:27]}  Ba6 {[%clk 0:02:26]} 17. d5 {[%clk 0:02:23]}  e5 {[%clk 0:02:09]} 18. Be3 {[%clk 0:02:14]}  c5 {[%clk 0:01:59]} 19. f4 {[%clk 0:01:53]}  Bd6 {[%clk 0:01:41]} 20. Rac1 {[%clk 0:01:26]}  Nf6 {[%clk 0:01:34]} 21. Qf3 {[%clk 0:01:15]}  Bxc4 {[%clk 0:01:31]} 22. bxc4 {[%clk 0:01:16]}  a4 {[%clk 0:01:29]} 23. Nb5 {[%clk 0:01:10]}  a3 {[%clk 0:01:27]} 24. Nxd6 {[%clk 0:01:03]}  Qxd6 {[%clk 0:01:28]} 25. fxe5 {[%clk 0:01:03]}  Qxe5 {[%clk 0:01:29]} 26. Bf4 {[%clk 0:01:04]}  Qb2 {[%clk 0:01:23]} 27. e5 {[%clk 0:01:00]}  a2 {[%clk 0:01:22]} 28. Ra1 {[%clk 0:00:45]}  Nc2 {[%clk 0:01:21]} 29. Rxa2 {[%clk 0:00:14]}  Rxa2 {[%clk 0:01:22]} 30. exf6 {[%clk 0:00:14]}  Nd4 {[%clk 0:01:16]} 31. Qf1 {[%clk 0:00:14]}  Ne2+ {[%clk 0:01:16]} 32. Kh1 {[%clk 0:00:14]}  Nxf4 {[%clk 0:01:16]} 33. fxg7 {[%clk 0:00:11]}  Re8 {[%clk 0:01:04]} 34. gxf4 {[%clk 0:00:10]}  Re2 {[%clk 0:01:04]} 35. Bf3 {[%clk 0:00:09]}  Rxh2+ {[%clk 0:00:59]} 36. Kg1 {[%clk 0:00:09]}  Qxg7+ {[%clk 0:00:59]} 0-1


[Site "https://www.chess.com"]

[Event "Titled Tuesday Blitz January 18 2022"]
[White "Kalogridis, Antonios"]
[Black "Devaev, Alexander"]
[WhiteFideId "25833901"]
[BlackFideId "4169395"]
[WhiteElo "1495"]
[BlackElo "2185"]
[Result "0-1"]
[Round "08"]
[TimeControl "180+1"]
[Date "2022.01.18"]
[WhiteClock "0:00:06"]
[BlackClock "0:00:01"]

1. d4 {[%clk 0:03:00]}  Nf6 {[%clk 0:02:59]} 2. c4 {[%clk 0:03:01]}  e6 {[%clk 0:02:59]} 3. Nc3 {[%clk 0:03:02]}  Bb4 {[%clk 0:03:00]} 4. e3 {[%clk 0:03:02]}  c5 {[%clk 0:03:00]} 5. Nf3 {[%clk 0:02:55]}  cxd4 {[%clk 0:03:00]} 6. exd4 {[%clk 0:02:56]}  d5 {[%clk 0:03:00]} 7. cxd5 {[%clk 0:02:53]}  Nxd5 {[%clk 0:03:00]} 8. Bd2 {[%clk 0:02:53]}  Nc6 {[%clk 0:03:01]} 9. Bd3 {[%clk 0:02:51]}  O-O {[%clk 0:03:01]} 10. O-O {[%clk 0:02:50]}  Be7 {[%clk 0:03:02]} 11. Re1 {[%clk 0:02:45]}  Bf6 {[%clk 0:02:57]} 12. Nxd5 {[%clk 0:02:31]}  Qxd5 {[%clk 0:02:55]} 13. Be4 {[%clk 0:02:31]}  Qd6 {[%clk 0:02:50]} 14. Bc3 {[%clk 0:02:26]}  Rd8 {[%clk 0:02:48]} 15. Qc2 {[%clk 0:02:21]}  h6 {[%clk 0:02:46]} 16. Rad1 {[%clk 0:02:21]}  Ne7 {[%clk 0:02:42]} 17. Ne5 {[%clk 0:02:14]}  Nd5 {[%clk 0:02:40]} 18. Ng4 {[%clk 0:01:52]}  Bg5 {[%clk 0:02:30]} 19. g3 {[%clk 0:01:48]}  Bd7 {[%clk 0:02:12]} 20. f4 {[%clk 0:01:46]}  Be7 {[%clk 0:02:09]} 21. Bxd5 {[%clk 0:01:40]}  Qxd5 {[%clk 0:02:04]} 22. Ne3 {[%clk 0:01:36]}  Qb5 {[%clk 0:01:59]} 23. f5 {[%clk 0:01:26]}  Bg5 {[%clk 0:01:52]} 24. fxe6 {[%clk 0:01:24]}  Bxe6 {[%clk 0:01:53]} 25. h4 {[%clk 0:01:21]}  Bxe3+ {[%clk 0:01:31]} 26. Rxe3 {[%clk 0:01:19]}  Bxa2 {[%clk 0:01:32]} 27. Rf1 {[%clk 0:01:08]}  Bc4 {[%clk 0:01:08]} 28. Rf5 {[%clk 0:01:03]}  Qa6 {[%clk 0:00:57]} 29. Ref3 {[%clk 0:00:53]}  Qg6 {[%clk 0:00:35]} 30. h5 {[%clk 0:00:43]}  Qb6 {[%clk 0:00:31]} 31. Kh2 {[%clk 0:00:20]}  Bd5 {[%clk 0:00:22]} 32. Rf1 {[%clk 0:00:18]}  Qc6 {[%clk 0:00:18]} 33. Qf2 {[%clk 0:00:18]}  Qd7 {[%clk 0:00:14]} 34. Re5 {[%clk 0:00:17]}  Re8 {[%clk 0:00:13]} 35. Rf5 {[%clk 0:00:17]}  Re4 {[%clk 0:00:12]} 36. Re5 {[%clk 0:00:17]}  Re8 {[%clk 0:00:12]} 37. Re1 {[%clk 0:00:15]}  Rxe1 {[%clk 0:00:11]} 38. Qxe1 {[%clk 0:00:15]}  Rxe5 {[%clk 0:00:10]} 39. Qxe5 {[%clk 0:00:16]}  a6 {[%clk 0:00:10]} 40. Kg1 {[%clk 0:00:15]}  f6 {[%clk 0:00:10]} 41. Qf4 {[%clk 0:00:15]}  Qf7 {[%clk 0:00:11]} 42. Kf2 {[%clk 0:00:15]}  Qxh5 {[%clk 0:00:11]} 43. Qb8+ {[%clk 0:00:15]}  Kh7 {[%clk 0:00:11]} 44. Qf4 {[%clk 0:00:14]}  Qh2+ {[%clk 0:00:10]} 45. Ke3 {[%clk 0:00:14]}  Qh5 {[%clk 0:00:10]} 46. Kd2 {[%clk 0:00:12]}  Qg6 {[%clk 0:00:09]} 47. Ke3 {[%clk 0:00:11]}  Bc4 {[%clk 0:00:09]} 48. Qe4 {[%clk 0:00:08]}  f5 {[%clk 0:00:09]} 49. Qe5 {[%clk 0:00:08]}  Qg5+ {[%clk 0:00:07]} 50. Kf2 {[%clk 0:00:07]}  Qg6 {[%clk 0:00:03]} 51. d5 {[%clk 0:00:07]}  b5 {[%clk 0:00:02]} 52. d6 {[%clk 0:00:08]}  b4 {[%clk 0:00:02]} 53. d7 {[%clk 0:00:06]}  f4 {[%clk 0:00:01]} 54. d8=Q {[%clk 0:00:06]}  Qxg3# {[%clk 0:00:01]} 0-1


[Site "https://www.chess.com"]

[Event "Titled Tuesday Blitz January 18 2022"]
[White "Klenburg, Michael"]
[Black "Fernandez, Michael"]
[WhiteFideId "14102072"]
[BlackFideId "5803560"]
[WhiteElo "2359"]
[BlackElo "2110"]
[Result "1-0"]
[Round "08"]
[TimeControl "180+1"]
[Date "2022.01.18"]
[WhiteClock "0:01:46"]
[BlackClock "0:00:54"]

1. g3 {[%clk 0:03:00]}  c5 {[%clk 0:02:59]} 2. Bg2 {[%clk 0:03:00]}  Nc6 {[%clk 0:02:59]} 3. e4 {[%clk 0:03:00]}  d6 {[%clk 0:02:57]} 4. d3 {[%clk 0:03:00]}  Nf6 {[%clk 0:02:56]} 5. f4 {[%clk 0:03:00]}  h5 {[%clk 0:02:51]} 6. h3 {[%clk 0:02:58]}  g6 {[%clk 0:02:48]} 7. Nf3 {[%clk 0:02:57]}  Bg7 {[%clk 0:02:48]} 8. O-O {[%clk 0:02:56]}  a6 {[%clk 0:02:49]} 9. Ng5 {[%clk 0:02:52]}  O-O {[%clk 0:02:47]} 10. Nc3 {[%clk 0:02:48]}  Rb8 {[%clk 0:02:42]} 11. Ne2 {[%clk 0:02:47]}  b5 {[%clk 0:02:39]} 12. Be3 {[%clk 0:02:47]}  Bb7 {[%clk 0:02:38]} 13. c3 {[%clk 0:02:46]}  e6 {[%clk 0:02:28]} 14. Qd2 {[%clk 0:02:39]}  Qe7 {[%clk 0:02:28]} 15. Rae1 {[%clk 0:02:38]}  d5 {[%clk 0:02:24]} 16. e5 {[%clk 0:02:36]}  Nd7 {[%clk 0:02:24]} 17. d4 {[%clk 0:02:36]}  b4 {[%clk 0:02:22]} 18. g4 {[%clk 0:02:35]}  hxg4 {[%clk 0:02:19]} 19. hxg4 {[%clk 0:02:35]}  Na5 {[%clk 0:02:09]} 20. b3 {[%clk 0:02:31]}  Nc6 {[%clk 0:01:58]} 21. dxc5 {[%clk 0:02:12]}  Nxc5 {[%clk 0:01:50]} 22. cxb4 {[%clk 0:02:10]}  Nd7 {[%clk 0:01:37]} 23. a3 {[%clk 0:02:10]}  f6 {[%clk 0:01:27]} 24. exf6 {[%clk 0:02:05]}  Nxf6 {[%clk 0:01:27]} 25. Bc5 {[%clk 0:02:02]}  Qd7 {[%clk 0:01:20]} 26. Nd4 {[%clk 0:02:01]}  Nxd4 {[%clk 0:01:14]} 27. Bxd4 {[%clk 0:02:01]}  Rbe8 {[%clk 0:01:09]} 28. Qc3 {[%clk 0:01:47]}  Rc8 {[%clk 0:00:54]} 29. Qh3 {[%clk 0:01:46]} 1-0


[Site "https://www.chess.com"]

[Event "Titled Tuesday Blitz January 18 2022"]
[White "Kopylov, Michael"]
[Black "Baskin, Robert"]
[WhiteFideId "14105080"]
[BlackFideId "24662402"]
[WhiteElo "2385"]
[BlackElo "2488"]
[Result "1-0"]
[Round "08"]
[TimeControl "180+1"]
[Date "2022.01.18"]
[WhiteClock "0:00:16"]
[BlackClock "0:00:05"]

1. d4 {[%clk 0:03:00]}  d6 {[%clk 0:02:59]} 2. c4 {[%clk 0:03:01]}  e5 {[%clk 0:02:59]} 3. Nf3 {[%clk 0:03:00]}  exd4 {[%clk 0:02:48]} 4. Nxd4 {[%clk 0:03:00]}  Nc6 {[%clk 0:02:43]} 5. Nc3 {[%clk 0:02:58]}  g6 {[%clk 0:02:43]} 6. g3 {[%clk 0:02:54]}  Bg7 {[%clk 0:02:43]} 7. Nxc6 {[%clk 0:02:54]}  bxc6 {[%clk 0:02:44]} 8. Bg2 {[%clk 0:02:54]}  Bd7 {[%clk 0:02:44]} 9. O-O {[%clk 0:02:54]}  Ne7 {[%clk 0:02:37]} 10. Qd2 {[%clk 0:02:49]}  h5 {[%clk 0:02:29]} 11. b3 {[%clk 0:02:47]}  h4 {[%clk 0:02:29]} 12. Bb2 {[%clk 0:02:46]}  hxg3 {[%clk 0:02:28]} 13. hxg3 {[%clk 0:02:46]}  Nf5 {[%clk 0:01:59]} 14. Ne4 {[%clk 0:02:36]}  Kf8 {[%clk 0:01:52]} 15. Rfd1 {[%clk 0:02:26]}  Qe7 {[%clk 0:01:52]} 16. Rac1 {[%clk 0:02:06]}  Re8 {[%clk 0:01:52]} 17. Bxg7+ {[%clk 0:01:45]}  Kxg7 {[%clk 0:01:52]} 18. Qa5 {[%clk 0:01:45]}  Nh4 {[%clk 0:01:15]} 19. Qc3+ {[%clk 0:01:23]}  f6 {[%clk 0:01:13]} 20. gxh4 {[%clk 0:01:20]}  Rxh4 {[%clk 0:01:13]} 21. Ng3 {[%clk 0:01:03]}  Reh8 {[%clk 0:01:13]} 22. Qa5 {[%clk 0:00:57]}  Bh3 {[%clk 0:00:43]} 23. Bf3 {[%clk 0:00:48]}  Bg4 {[%clk 0:00:39]} 24. Bxc6 {[%clk 0:00:38]}  f5 {[%clk 0:00:12]} 25. Qxa7 {[%clk 0:00:35]}  f4 {[%clk 0:00:12]} 26. Qd4+ {[%clk 0:00:35]}  Qe5 {[%clk 0:00:10]} 27. Nf1 {[%clk 0:00:20]}  f3 {[%clk 0:00:10]} 28. exf3 {[%clk 0:00:18]}  Rh1+ {[%clk 0:00:10]} 29. Kg2 {[%clk 0:00:18]}  Bh3+ {[%clk 0:00:04]} 30. Kxh1 {[%clk 0:00:18]}  Bxf1+ {[%clk 0:00:04]} 31. Kg1 {[%clk 0:00:19]}  Be2 {[%clk 0:00:04]} 32. Qxe5+ {[%clk 0:00:19]}  dxe5 {[%clk 0:00:04]} 33. Rd7+ {[%clk 0:00:19]}  Kf6 {[%clk 0:00:05]} 34. Rxc7 {[%clk 0:00:16]}  Bd3 {[%clk 0:00:05]} 35. Be4 {[%clk 0:00:16]} 1-0


[Site "https://www.chess.com"]

[Event "Titled Tuesday Blitz January 18 2022"]
[White "Kornyukov, Alexey"]
[Black "Musovic, Armin"]
[WhiteFideId "4150457"]
[BlackFideId "939935"]
[WhiteElo "2303"]
[BlackElo "2250"]
[Result "0-1"]
[Round "08"]
[TimeControl "180+1"]
[Date "2022.01.18"]
[WhiteClock "0:00:01"]
[BlackClock "0:00:31"]

1. d4 {[%clk 0:03:00]}  d5 {[%clk 0:03:00]} 2. c4 {[%clk 0:03:00]}  c5 {[%clk 0:03:00]} 3. cxd5 {[%clk 0:02:58]}  e6 {[%clk 0:03:01]} 4. dxe6 {[%clk 0:02:44]}  Bxe6 {[%clk 0:03:02]} 5. Nf3 {[%clk 0:02:44]}  Nc6 {[%clk 0:03:01]} 6. e3 {[%clk 0:02:37]}  a6 {[%clk 0:03:02]} 7. Nc3 {[%clk 0:02:33]}  Nf6 {[%clk 0:03:01]} 8. Be2 {[%clk 0:02:22]}  Be7 {[%clk 0:03:00]} 9. O-O {[%clk 0:02:21]}  O-O {[%clk 0:03:00]} 10. dxc5 {[%clk 0:02:14]}  Qa5 {[%clk 0:03:00]} 11. a3 {[%clk 0:02:10]}  Qxc5 {[%clk 0:02:56]} 12. Na4 {[%clk 0:02:00]}  Qa7 {[%clk 0:02:44]} 13. b4 {[%clk 0:01:42]}  Rfd8 {[%clk 0:02:41]} 14. Qc2 {[%clk 0:01:41]}  Rac8 {[%clk 0:02:41]} 15. Qb1 {[%clk 0:01:27]}  Bg4 {[%clk 0:02:23]} 16. Bb2 {[%clk 0:01:20]}  Bh5 {[%clk 0:02:05]} 17. Rd1 {[%clk 0:01:16]}  Re8 {[%clk 0:01:47]} 18. Qa2 {[%clk 0:01:05]}  Ng4 {[%clk 0:01:06]} 19. Nd4 {[%clk 0:00:35]}  Nxd4 {[%clk 0:00:59]} 20. Bxd4 {[%clk 0:00:32]}  Qb8 {[%clk 0:00:59]} 21. g3 {[%clk 0:00:27]}  Bg5 {[%clk 0:00:42]} 22. Nb6 {[%clk 0:00:14]}  Rc6 {[%clk 0:00:37]} 23. Rac1 {[%clk 0:00:13]}  Rh6 {[%clk 0:00:36]} 24. Qb2 {[%clk 0:00:05]}  Nxh2 {[%clk 0:00:33]} 25. Bxg7 {[%clk 0:00:02]}  Bxe2 {[%clk 0:00:33]} 26. Qxe2 {[%clk 0:00:01]}  Kxg7 {[%clk 0:00:31]} 0-1


[Site "https://www.chess.com"]

[Event "Titled Tuesday Blitz January 18 2022"]
[White "Kosakowski, Jakub"]
[Black "Nesterov, Arseniy"]
[WhiteFideId "1185080"]
[BlackFideId "24198455"]
[WhiteElo "2476"]
[BlackElo "2489"]
[Result "1-0"]
[Round "08"]
[TimeControl "180+1"]
[Date "2022.01.18"]
[WhiteClock "0:00:06"]
[BlackClock "0:00:04"]

1. e4 {[%clk 0:03:00]}  e5 {[%clk 0:03:00]} 2. Nf3 {[%clk 0:03:00]}  Nc6 {[%clk 0:03:00]} 3. Bb5 {[%clk 0:03:01]}  a6 {[%clk 0:03:00]} 4. Ba4 {[%clk 0:03:01]}  b5 {[%clk 0:03:00]} 5. Bb3 {[%clk 0:03:01]}  Na5 {[%clk 0:03:01]} 6. Nc3 {[%clk 0:03:01]}  d6 {[%clk 0:02:58]} 7. d4 {[%clk 0:02:57]}  exd4 {[%clk 0:02:59]} 8. Qxd4 {[%clk 0:02:58]}  Bb7 {[%clk 0:02:57]} 9. Qd3 {[%clk 0:02:55]}  Nf6 {[%clk 0:02:52]} 10. Bg5 {[%clk 0:02:54]}  Be7 {[%clk 0:02:52]} 11. O-O {[%clk 0:02:47]}  O-O {[%clk 0:02:45]} 12. Rfe1 {[%clk 0:02:13]}  Nxb3 {[%clk 0:02:28]} 13. axb3 {[%clk 0:02:13]}  b4 {[%clk 0:02:29]} 14. Nb1 {[%clk 0:01:58]}  Bxe4 {[%clk 0:02:20]} 15. Bxf6 {[%clk 0:01:41]}  Bxd3 {[%clk 0:02:02]} 16. Bxe7 {[%clk 0:01:41]}  Qd7 {[%clk 0:01:54]} 17. cxd3 {[%clk 0:01:22]}  Rfe8 {[%clk 0:01:48]} 18. Bg5 {[%clk 0:01:22]}  Qf5 {[%clk 0:01:32]} 19. Nbd2 {[%clk 0:01:18]}  Qxd3 {[%clk 0:01:22]} 20. Be3 {[%clk 0:01:17]}  h6 {[%clk 0:01:16]} 21. Rec1 {[%clk 0:01:16]}  c5 {[%clk 0:01:14]} 22. Nc4 {[%clk 0:01:11]}  Re6 {[%clk 0:00:55]} 23. Na5 {[%clk 0:01:01]}  Rxe3 {[%clk 0:00:47]} 24. fxe3 {[%clk 0:01:01]}  Qxe3+ {[%clk 0:00:48]} 25. Kh1 {[%clk 0:01:01]}  Qf2 {[%clk 0:00:48]} 26. Nc4 {[%clk 0:00:41]}  d5 {[%clk 0:00:41]} 27. Ncd2 {[%clk 0:00:33]}  a5 {[%clk 0:00:30]} 28. Rf1 {[%clk 0:00:31]}  Qe3 {[%clk 0:00:29]} 29. Rae1 {[%clk 0:00:31]}  Qd3 {[%clk 0:00:28]} 30. Rc1 {[%clk 0:00:28]}  Rc8 {[%clk 0:00:24]} 31. Rfe1 {[%clk 0:00:28]}  f6 {[%clk 0:00:22]} 32. Red1 {[%clk 0:00:24]}  c4 {[%clk 0:00:09]} 33. bxc4 {[%clk 0:00:23]}  dxc4 {[%clk 0:00:08]} 34. Nxc4 {[%clk 0:00:20]}  Rxc4 {[%clk 0:00:03]} 35. Rxd3 {[%clk 0:00:20]}  Rxc1+ {[%clk 0:00:04]} 36. Ng1 {[%clk 0:00:21]}  Rb1 {[%clk 0:00:04]} 37. b3 {[%clk 0:00:21]}  Kf7 {[%clk 0:00:04]} 38. Rd5 {[%clk 0:00:17]}  Rxb3 {[%clk 0:00:03]} 39. Rxa5 {[%clk 0:00:18]}  Rb1 {[%clk 0:00:04]} 40. Rb5 {[%clk 0:00:18]}  b3 {[%clk 0:00:03]} 41. h3 {[%clk 0:00:19]}  g5 {[%clk 0:00:03]} 42. Kh2 {[%clk 0:00:19]}  h5 {[%clk 0:00:04]} 43. Nf3 {[%clk 0:00:20]}  b2 {[%clk 0:00:02]} 44. Nd2 {[%clk 0:00:20]}  Re1 {[%clk 0:00:03]} 45. Rxb2 {[%clk 0:00:20]}  Re2 {[%clk 0:00:03]} 46. Rb7+ {[%clk 0:00:20]}  Kg6 {[%clk 0:00:03]} 47. Nf3 {[%clk 0:00:18]}  g4 {[%clk 0:00:02]} 48. hxg4 {[%clk 0:00:16]}  hxg4 {[%clk 0:00:03]} 49. Nd4 {[%clk 0:00:16]}  Rd2 {[%clk 0:00:03]} 50. Rb4 {[%clk 0:00:15]}  f5 {[%clk 0:00:03]} 51. Ne6 {[%clk 0:00:15]}  Kf6 {[%clk 0:00:02]} 52. Nf4 {[%clk 0:00:15]}  Kg5 {[%clk 0:00:03]} 53. Kg3 {[%clk 0:00:15]}  Rc2 {[%clk 0:00:03]} 54. Rb3 {[%clk 0:00:13]}  Rc4 {[%clk 0:00:03]} 55. Ne6+ {[%clk 0:00:12]}  Kf6 {[%clk 0:00:03]} 56. Re3 {[%clk 0:00:12]}  Rb4 {[%clk 0:00:02]} 57. Nf4 {[%clk 0:00:12]}  Kg5 {[%clk 0:00:03]} 58. Ne6+ {[%clk 0:00:12]}  Kf6 {[%clk 0:00:03]} 59. Nc7 {[%clk 0:00:08]}  Kg5 {[%clk 0:00:03]} 60. Re8 {[%clk 0:00:07]}  f4+ {[%clk 0:00:03]} 61. Kh2 {[%clk 0:00:07]}  Rb1 {[%clk 0:00:03]} 62. Rg8+ {[%clk 0:00:05]}  Kf5 {[%clk 0:00:03]} 63. Rf8+ {[%clk 0:00:06]}  Kg5 {[%clk 0:00:03]} 64. Ne6+ {[%clk 0:00:06]}  Kh4 {[%clk 0:00:04]} 65. Rh8# {[%clk 0:00:06]} 1-0


[Site "https://www.chess.com"]